bitfinex-derivatives/quotes_ETHF0:USTF0_20250616
["timestamp","ask_amount","ask_price","bid_price","bid_amount"]
[1750073248160,0.76999,2597.4,2597.3,0.76997]
[1750073248857,0.76999,2597.4,2597.3,0.76999]
[1750073249761,0.76996,2597.5,2597.4,0.76996]
[1750073250158,2.77013,2597.6,2597.5,0.76994]
[1750073250357,3.82509188,2597.6,2597.5,0.76994]
[1750073251057,0.77,2597.4,2597.3,0.76998]
[1750073252057,1.92502,2597.3,2596.6,5.13329]
[1750073252266,0.77011,2597.0,2596.9,0.77009]
[1750073252457,1.3296,2597.3,2596.7,2.57695]
[1750073252458,0.77009,2597.1,2597.0,0.77007]
[1750073253556,3.2078,2597.5,2596.9,5.13311]
[1750073253755,2.57794,2597.6,2597.3,0.77]
[1750073253756,1.05528173,2597.4,2597.3,0.77]
[1750073253955,0.76995,2597.5,2597.4,0.76997]
[1750073254162,1.82533568,2597.5,2597.4,0.76997]
[1750073254367,0.76995,2597.5,2597.4,0.76997]
[1750073255860,0.76994,2597.5,2597.4,0.76997]
[1750073256158,0.00577823,2597.7,2597.6,0.76991]
[1750073257458,0.00577823,2597.7,2597.6,10.1540006]
[1750073257960,5.43847385,2598.3,2598.1,0.76974]
[1750073258164,0.30827385,2598.3,2598.2,0.76974]
[1750073258662,0.6406,2598.6,2598.3,0.76968]
[1750073258963,0.76968,2598.4,2598.3,0.76968]
[1750073259162,1.82590227,2598.5,2598.4,0.76968]
[1750073259459,0.76967,2598.5,2598.4,0.76968]
[1750073259862,0.76971,2598.3,2598.2,0.00577823]
[1750073260661,0.76971,2598.3,2598.2,0.77551823]
[1750073262463,0.76967,2598.5,2598.4,0.76966]
[1750073262664,3.21357823,2598.7,2598.2,1.29387823]
[1750073262865,0.76963,2598.6,2598.5,0.76962]
[1750073264268,0.76967,2598.5,2598.4,0.76966]
[1750073264764,0.00577823,2598.7,2598.6,0.76962]
[1750073265566,0.00577823,2598.7,2598.6,2.05282]
[1750073266164,3.8774,2599.4,2599.2,0.76941]
[1750073266366,4.6468,2599.4,2599.3,0.76941]
[1750073266765,3.9772,2599.4,2599.3,0.76941]
[1750073267264,3.2078,2599.4,2599.3,0.76941]
[1750073267467,0.77304344,2599.6,2599.5,0.76935]
[1750073267667,0.76936,2599.5,2599.4,0.76936]
[1750073267966,0.77305344,2599.6,2599.5,0.76935]
[1750073268765,0.00371344,2599.6,2599.5,0.76935]
[1750073269071,0.00371344,2599.6,2599.5,2.04255]
[1750073269779,0.76941,2599.3,2599.2,0.6326]
[1750073270066,0.76936,2599.5,2599.4,0.76936]
[1750073270270,0.76939,2599.4,2599.3,0.76939]
[1750073271171,0.76941,2599.3,2599.2,1.40202]
[1750073271673,0.76939,2599.4,2599.3,0.76939]
[1750073272174,0.76941,2599.3,2599.2,1.40202]
[1750073272665,0.7694,2599.4,2599.3,0.76941]
[1750073272866,0.76939,2599.4,2599.3,0.76939]
[1750073273264,0.76939,2599.4,2599.2,0.6326]
[1750073273564,0.76941,2599.3,2599.2,1.40202]
[1750073274069,0.76941,2599.3,2599.2,0.6326]
[1750073274764,1.9234,2599.5,2599.1,0.76947]
[1750073274970,0.76945,2599.2,2599.1,0.76946]
[1750073275272,0.76949,2599.1,2599.0,0.76948]
[1750073277373,0.76949,2599.1,2598.8,17.94629051]
[1750073277374,0.76946,2599.2,2599.1,0.76943]
[1750073277868,0.76944,2599.3,2599.2,0.76939]
[1750073278673,0.76944,2599.2,2599.1,8.75540051]
[1750073278875,0.76944,2599.2,2599.1,3.2078]
[1750073279271,0.76944,2599.2,2598.9,6.83320051]
[1750073279474,0.7695,2599.0,2598.9,5.54760051]
[1750073279674,0.7695,2599.1,2599.0,0.76947]
[1750073280480,0.7695,2599.0,2598.9,6.31711051]
[1750073280777,1.92364,2599.2,2598.9,5.54760051]
[1750073280970,0.7695,2599.0,2598.9,6.31712051]
[1750073281372,0.76949,2599.1,2599.0,0.76945]
[1750073282380,0.76959,2598.7,2598.6,0.76962]
[1750073282676,0.76962,2598.6,2598.5,3.97743]
[1750073283379,0.76961,2598.7,2598.6,0.76959]
[1750073284179,5.0,2598.7,2597.9,3.2078]
[1750073284376,0.76988,2597.8,2597.7,0.76986]
[1750073284572,0.7698,2598.0,2597.6,2.60846]
[1750073284871,0.7698,2598.0,2597.9,0.76981]
[1750073285071,0.7698,2598.0,2597.8,0.76983]
[1750073285270,0.7698,2598.0,2597.9,0.76982]
[1750073285674,0.76983,2597.9,2597.8,0.76983]
[1750073286478,0.76982,2598.0,2597.9,0.7698]
[1750073286673,0.76985,2597.9,2597.8,0.76984]
[1750073286878,0.76986,2597.8,2597.7,0.76987]
[1750073287175,0.76982,2598.0,2597.9,0.76982]
[1750073287379,0.76988,2597.7,2597.6,0.00577823]
[1750073288479,2.11048,2597.7,2597.6,0.00577823]
[1750073291478,1.92482,2597.6,2597.1,6.17810051]
[1750073291780,1.92482,2597.6,2596.9,0.6687]
[1750073291781,0.77009,2597.0,2596.9,0.77012]
[1750073291981,0.77008,2597.1,2597.0,0.77007]
[1750073292281,0.77009,2597.1,2597.0,0.77008]
[1750073292481,0.7701,2597.0,2596.9,0.7701]
[1750073292980,0.77008,2597.1,2597.0,0.77007]
[1750073294681,0.77012,2597.0,2596.9,0.7701]
[1750073296484,0.77008,2597.1,2597.0,0.77005]
[1750073299878,0.77012,2597.0,2596.9,0.77009]
[1750073300685,0.77013,2596.9,2596.8,0.00577823]
[1750073300886,0.77024,2596.6,2596.5,0.77021]
[1750073301483,0.7702,2596.7,2596.6,0.77017]
[1750073301682,0.77017,2596.8,2596.7,0.77015]
[1750073302384,0.00577823,2597.0,2596.7,5.54760051]
[1750073302595,0.00577823,2597.0,2596.9,0.77012]
[1750073302983,0.00577823,2597.0,2596.9,7.72952]
[1750073303281,0.83738406,2597.3,2597.2,0.77004]
[1750073303487,0.7701,2597.1,2597.0,0.77006]
[1750073303678,0.7701,2597.0,2596.9,1.3989]
[1750073304285,0.77013,2596.9,2596.8,3.97795]
[1750073304486,0.77013,2596.9,2596.8,3.2078]
[1750073304680,0.7702,2596.7,2596.6,0.77019]
[1750073305186,0.77018,2596.8,2596.7,0.77017]
[1750073305985,0.77021,2596.7,2596.6,0.7702]
[1750073307392,0.77018,2596.8,2596.7,0.77016]
[1750073308495,0.77021,2596.7,2596.6,0.77019]
[1750073308786,0.77021,2596.6,2596.5,1.39709823]
[1750073309300,0.77021,2596.6,2596.5,4.60489823]
[1750073310782,0.77021,2596.6,2596.5,3.98379823]
[1750073311091,0.77021,2596.6,2596.5,0.77599823]
[1750073311290,0.7702,2596.8,2596.7,0.77016]
[1750073311596,0.77021,2596.7,2596.6,0.77019]
[1750073311790,0.77021,2596.6,2596.5,0.77600823]
[1750073314296,0.77021,2596.7,2596.6,0.77017]
[1750073314893,0.77018,2596.8,2596.7,0.77014]
[1750073315494,0.77018,2596.7,2596.6,3.44016157]
[1750073315695,0.77021,2596.6,2596.5,0.00577823]
[1750073316092,1.82851231,2596.6,2596.5,0.00577823]
[1750073316597,3.06851231,2596.6,2596.5,0.00577823]
[1750073318002,3.13588637,2596.6,2596.5,0.00577823]
[1750073318298,10.07688637,2596.6,2596.5,0.00577823]
[1750073318501,1.89588637,2596.6,2596.5,3.4459798]
[1750073318800,1.82851231,2596.6,2596.5,3.4459798]
[1750073320192,1.82851231,2596.6,2596.5,2.6757398]
[1750073320395,1.82851231,2596.6,2596.5,0.00577823]
[1750073320804,1.82851231,2596.6,2596.5,0.77601823]
[1750073321098,1.82851231,2596.6,2596.5,0.00577823]
[1750073321493,1.05830231,2596.6,2596.5,9.53853418]
[1750073321690,0.77008,2597.1,2597.0,0.7701]
[1750073321890,0.77008,2597.1,2596.6,1.92547]
[1750073321891,1.83489314,2597.2,2597.1,0.77007]
[1750073322089,1.06485314,2597.2,2597.1,0.77007]
[1750073322299,1.06485314,2597.2,2597.1,3.97787]
[1750073322701,0.00577823,2597.2,2597.1,3.97787]
[1750073324001,0.00577823,2597.2,2597.1,5.26757]
[1750073324203,3.53048714,2597.9,2597.8,0.76986]
[1750073324401,1.70821092,2597.9,2597.8,3.97766]
[1750073324900,0.6489,2597.9,2597.8,3.97766]
[1750073325104,0.76975,2598.2,2598.1,0.76977]
[1750073325301,2.24188714,2598.7,2598.1,58.4168]
[1750073325499,3.2078,2599.8,2598.1,58.4168]
[1750073325500,2.98918285,2599.5,2599.1,1.92369]
[1750073325699,0.76928,2599.8,2599.5,0.76934]
[1750073325999,0.76929,2599.8,2599.5,0.76934]
[1750073326205,0.31046875,2600.0,2599.4,3.2078]
[1750073326504,3.2078,2599.5,2598.5,3.2078]
[1750073326698,3.97715,2599.5,2599.4,0.00577823]
[1750073327100,0.76935,2599.5,2599.4,0.00577823]
[1750073327297,3.2078,2599.8,2599.4,0.00577823]
[1750073327498,0.76927,2599.8,2599.5,0.76934]
[1750073327798,0.00371344,2600.0,2599.4,3.21357823]
[1750073328109,0.7693,2599.7,2599.5,0.76934]
[1750073328403,0.00371344,2600.0,2599.4,4.46457823]
[1750073328598,0.76928,2599.8,2599.5,0.76935]
[1750073328799,0.00371344,2600.0,2599.5,0.76935]
[1750073329003,0.76931,2599.7,2599.4,3.98294823]
[1750073329202,0.76933,2599.6,2599.4,3.98294823]
[1750073329403,0.00371344,2600.0,2599.4,3.21357823]
[1750073329603,0.76928,2599.8,2599.5,0.76933]
[1750073329903,0.00371344,2600.0,2599.4,3.98294823]
[1750073330208,0.76932,2599.7,2599.4,3.98294823]
[1750073330600,0.76933,2599.6,2599.4,3.98294823]
[1750073331109,0.76932,2599.7,2599.5,0.76935]
[1750073331403,0.76935,2599.5,2599.4,3.21357823]
[1750073331604,0.76935,2599.5,2599.4,0.00577823]
[1750073334408,0.7695,2599.0,2598.9,0.617]
[1750073334612,0.76956,2598.8,2598.7,3.2078]
[1750073335406,0.76962,2598.6,2598.5,6.94277823]
[1750073335611,1.92376,2599.0,2598.5,7.71241823]
[1750073335810,0.76962,2598.6,2598.5,7.71241823]
[1750073336006,0.76962,2598.6,2598.5,0.00577823]
[1750073336808,0.76961,2598.7,2598.5,0.77540823]
[1750073337010,0.76957,2598.8,2598.5,0.00577823]
[1750073337209,0.76957,2598.8,2598.6,0.7696]
[1750073337715,0.76959,2598.7,2598.6,0.7696]
[1750073338408,0.76962,2598.6,2598.5,2.11540823]
[1750073338613,0.76962,2598.6,2598.5,0.00577823]
[1750073339410,0.76962,2598.6,2598.5,0.77542823]
[1750073339611,0.76962,2598.6,2598.5,0.00577823]
[1750073340125,3.97742,2598.6,2598.5,0.00577823]
[1750073340320,0.76962,2598.6,2598.5,0.00577823]
[1750073340513,3.97742,2598.6,2598.5,0.00577823]
[1750073341322,0.76977,2598.1,2598.0,3.2078]
[1750073341612,0.76977,2598.1,2598.0,3.97759]
[1750073342922,0.76976,2598.2,2598.1,0.76975]
[1750073343619,0.76975,2598.2,2598.1,0.76974]
[1750073343911,0.76983,2597.9,2597.8,0.00577823]
[1750073344306,0.76995,2597.5,2597.4,0.76997]
[1750073344823,5.13238,2597.9,2597.3,3.2078]
[1750073344824,3.2078,2597.9,2597.3,8.76251595]
[1750073345120,0.76976,2598.2,2598.1,0.76977]
[1750073345420,0.7698,2598.0,2597.9,0.77557823]
[1750073345718,3.9776,2598.0,2597.9,0.00577823]
[1750073346014,0.76992,2597.6,2597.5,3.2078]
[1750073346419,3.94200406,2597.9,2597.5,3.2078]
[1750073346718,0.76992,2597.6,2597.5,3.2078]
[1750073346920,0.76992,2597.6,2597.5,3.97775]
[1750073347115,0.76992,2597.6,2597.5,3.2078]
[1750073347613,1.95,2597.9,2597.5,3.2078]
[1750073347819,0.76988,2597.8,2597.7,0.76988]
[1750073348024,0.76991,2597.7,2597.6,0.76989]
[1750073348214,0.6564,2597.9,2597.5,3.2078]
[1750073348215,0.76992,2597.6,2597.5,3.2078]
[1750073348521,0.76992,2597.6,2597.5,3.97775]
[1750073348718,0.76991,2597.7,2597.6,0.7699]
[1750073348919,3.2078,2598.1,2597.5,5.13264]
[1750073349222,0.76982,2598.0,2597.9,6.32452595]
[1750073349526,1.92443,2598.1,2597.7,3.2078]
[1750073349819,5.13233,2598.0,2597.6,0.7699]
[1750073350123,0.76987,2597.8,2597.7,0.76985]
[1750073350823,0.76985,2597.9,2597.8,0.76984]
[1750073351322,0.76992,2597.7,2597.6,0.7699]
[1750073351522,0.76989,2597.8,2597.7,0.76987]
[1750073352024,0.76984,2597.9,2597.8,0.76983]
[1750073352619,1.2715,2598.2,2597.9,0.7698]
[1750073352821,12.07387823,2598.3,2598.0,0.76976]
[1750073352822,0.76979,2598.1,2598.0,0.76976]
[1750073353430,3.98330823,2598.3,2598.2,0.76974]
[1750073353618,0.77550823,2598.3,2598.2,0.76974]
[1750073354026,0.76976,2598.2,2598.1,0.76975]
[1750073354429,0.76976,2598.2,2598.1,2.09765]
[1750073354726,0.76977,2598.1,2598.0,5.55471595]
[1750073354926,0.76983,2597.9,2597.8,0.6533]
[1750073355421,0.76982,2598.0,2597.9,0.7698]
[1750073355929,0.76976,2598.2,2598.1,0.76974]
[1750073356122,0.76976,2598.2,2598.1,5.55471595]
[1750073357126,0.76976,2598.2,2598.1,0.76977]
[1750073359132,0.76978,2598.1,2598.0,0.76978]
[1750073360030,1.92439,2598.2,2597.8,3.8611]
[1750073360343,0.76983,2597.9,2597.8,4.63095]
[1750073360545,0.76982,2598.0,2597.9,0.7698]
[1750073360940,0.76983,2597.9,2597.8,4.63094]
[1750073363339,1.92438,2598.2,2597.9,0.76979]
[1750073363340,0.76982,2598.0,2597.9,0.76979]
[1750073363631,0.00577823,2598.3,2598.2,0.76974]
[1750073363833,0.00577823,2598.3,2598.2,9.53225595]
[1750073367531,0.76961,2598.7,2598.6,0.76962]
[1750073367935,1.79200519,2598.7,2598.6,0.76962]
[1750073368330,0.76962,2598.6,2598.5,6.94204595]
[1750073368529,0.77537823,2598.8,2598.7,0.76957]
[1750073368734,1.7971769,2598.8,2598.7,0.76957]
[1750073368937,0.76962,2598.7,2598.6,0.7696]
[1750073370934,0.00577823,2598.8,2598.7,0.76959]
[1750073371126,0.77533823,2598.8,2598.7,0.76959]
[1750073373750,0.00577823,2598.8,2598.7,0.76959]
[1750073374452,0.77533823,2598.8,2598.7,0.76959]
[1750073377451,0.00577823,2598.8,2598.7,0.76959]
[1750073377761,0.77533823,2598.8,2598.7,0.76959]
[1750073378157,0.77533823,2598.8,2598.6,0.76959]
[1750073378158,0.76962,2598.7,2598.6,0.76959]
[1750073378463,0.77535823,2598.8,2598.7,0.76959]
[1750073378864,0.00577823,2598.8,2598.7,0.76959]
[1750073380862,0.00577823,2598.8,2598.7,3.43497309]
[1750073382762,0.77533823,2598.8,2598.7,3.43497309]
[1750073382963,0.77533823,2598.8,2598.7,0.76959]
[1750073383856,2.09553823,2598.8,2598.7,0.76959]
[1750073384563,0.00577823,2598.8,2598.7,3.43497309]
[1750073385660,0.77533823,2598.8,2598.7,0.76959]
[1750073385858,2.09553823,2598.8,2598.7,0.76959]
[1750073386762,0.00577823,2598.8,2598.7,3.43497309]
[1750073387464,0.00577823,2598.8,2598.7,6.64277309]
[1750073388055,3.2078,2599.2,2599.1,0.76947]
[1750073388265,3.97724,2599.2,2599.1,3.43485309]
[1750073388564,1.78985274,2599.2,2599.1,3.43485309]
[1750073388754,1.02041274,2599.2,2599.1,3.43485309]
[1750073388961,0.64397823,2599.4,2599.3,0.76941]
[1750073389162,1.41337823,2599.4,2599.3,0.76941]
[1750073390268,0.77517823,2599.4,2599.3,0.76941]
[1750073391561,2.08737823,2599.4,2599.3,0.76941]
[1750073391762,1.31797823,2599.4,2599.3,0.76941]
[1750073391964,0.00577823,2599.4,2599.3,3.43479309]
[1750073392165,0.77515823,2599.4,2599.3,3.43479309]
[1750073393069,1.79586735,2599.4,2599.3,3.43479309]
[1750073395070,0.76944,2599.3,2599.2,0.76942]
[1750073395268,0.00577823,2599.4,2598.9,0.00577823]
[1750073395465,0.7695,2599.0,2598.9,0.00577823]
[1750073395665,1.78982088,2599.0,2598.9,0.00577823]
[1750073396663,3.72632088,2599.0,2598.9,0.00577823]
[1750073398572,3.72659654,2599.0,2598.9,0.00577823]
[1750073399164,2.706,2599.0,2598.9,0.00577823]
[1750073399370,3.72674406,2599.0,2598.9,0.00577823]
[1750073402671,3.72674406,2599.0,2598.3,8.2563]
[1750073402672,0.76974,2598.3,2598.1,3.2078]
[1750073402863,1.92384,2598.9,2598.1,3.2078]
[1750073402864,0.76974,2598.2,2598.1,3.2078]
[1750073403068,0.76977,2598.1,2598.0,2.66538309]
[1750073403275,0.76977,2598.1,2597.8,3.97764]
[1750073403276,0.76983,2597.9,2597.8,3.97764]
[1750073403669,0.76983,2597.9,2597.8,0.76984]
[1750073404082,0.76983,2598.0,2597.9,0.7698]
[1750073404378,0.76983,2598.0,2597.9,2.66538309]
[1750073404773,0.76983,2598.0,2597.9,3.43521309]
[1750073404974,0.76983,2597.9,2597.8,3.97764]
[1750073405374,0.83720406,2597.9,2597.8,3.97764]
[1750073405575,0.83720406,2597.9,2597.8,3.2078]
[1750073406482,0.76983,2597.9,2597.8,0.76986]
[1750073407382,0.76987,2597.8,2597.7,0.76986]
[1750073407784,0.76989,2597.7,2597.6,2.05196823]
[1750073408083,0.76989,2597.8,2597.7,0.76988]
[1750073408579,0.76985,2597.9,2597.8,0.76984]
[1750073409187,0.76983,2598.0,2597.9,0.76981]
[1750073409483,25.58277823,2598.1,2598.0,0.7698]
[1750073409484,25.70154823,2598.1,2598.0,0.7698]
[1750073410085,0.76983,2597.9,2597.8,3.97763]
[1750073410277,0.76983,2597.9,2597.8,0.76983]
[1750073411379,0.76986,2597.8,2597.7,2.07567]
[1750073411585,0.76985,2597.9,2597.8,0.76983]
[1750073411784,24.93177823,2598.1,2597.7,3.23051]
[1750073411984,25.70157823,2598.1,2598.0,0.7698]
[1750073412283,0.00577823,2598.1,2598.0,0.7698]
[1750073412484,3.2078,2598.6,2598.5,0.76965]
[1750073412784,2.54917,2598.9,2598.5,0.76965]
[1750073412785,0.76963,2598.7,2598.6,0.7696]
[1750073413387,0.76962,2598.6,2598.5,5.5486928]
[1750073413684,0.76965,2598.5,2598.4,5.24517]
[1750073413984,0.76965,2598.5,2598.4,2.03737]
[1750073414183,0.76964,2598.6,2598.5,0.76964]
[1750073414786,0.76962,2598.7,2598.6,0.76961]
[1750073416684,0.76962,2598.7,2598.4,6.564]
[1750073416685,0.00577823,2598.8,2598.7,0.76959]
[1750073417189,0.77533823,2598.8,2598.7,0.76959]
[1750073417883,0.76961,2598.7,2598.6,0.7696]
[1750073418092,0.00577823,2598.8,2598.7,0.76959]
[1750073419683,0.00577823,2598.8,2598.7,5.76959]
[1750073419891,0.76944,2599.2,2599.1,0.76947]
[1750073420092,0.76944,2599.3,2599.2,0.76941]
[1750073420590,25.6844,2599.4,2599.3,0.76938]
[1750073420793,0.7694,2599.4,2599.3,0.76938]
[1750073421984,0.76937,2599.5,2599.4,0.76935]
[1750073422591,3.98289823,2599.6,2599.5,0.76935]
[1750073423284,0.00577823,2599.6,2599.5,6.3180428]
[1750073426895,0.00577823,2599.6,2599.5,3.43317204]
[1750073428598,3.97707,2599.9,2599.8,0.76926]
[1750073428792,0.76926,2599.8,2599.7,3.43309204]
[1750073431500,0.76929,2599.7,2599.6,1.40281]
[1750073432000,0.76928,2599.8,2599.7,0.76926]
[1750073432210,3.97705,2599.9,2599.8,0.76926]
[1750073432898,3.97703,2599.9,2599.8,0.76926]
[1750073433098,3.2078,2599.9,2599.8,0.76926]
[1750073433402,3.97703,2599.9,2599.8,0.76926]
[1750073434006,0.76929,2599.8,2599.7,0.76928]
[1750073434299,0.7693,2599.8,2599.7,0.76928]
[1750073434491,2.0546,2599.8,2599.7,0.76928]
[1750073435101,0.7693,2599.8,2599.7,3.43310204]
[1750073435703,4.60195,2599.9,2599.8,0.76926]
[1750073435902,3.2078,2599.9,2599.8,0.76926]
[1750073436606,1.44449,2600.4,2600.3,0.76912]
[1750073436806,0.6754,2600.4,2600.3,3.43294204]
[1750073437008,0.6754,2600.4,2600.3,0.76912]
[1750073437398,1.44449,2600.4,2600.3,0.76912]
[1750073441002,0.76912,2600.3,2600.2,3.97692]
[1750073441207,1.44451,2600.4,2600.3,0.76912]
[1750073441414,0.76911,2600.4,2600.3,0.76912]
[1750073441906,1.39398,2600.5,2600.4,0.76909]
[1750073442205,3.2078,2600.8,2600.7,0.769]
[1750073442503,0.76903,2600.7,2600.6,0.76901]
[1750073442704,0.76903,2600.6,2600.5,0.00577823]
[1750073443311,0.76903,2600.6,2600.5,0.77483823]
[1750073444007,0.83640406,2600.6,2600.5,0.77483823]
[1750073444898,0.76903,2600.6,2600.5,0.77483823]
[1750073445105,0.76903,2600.6,2600.5,0.00577823]
[1750073445605,0.76903,2600.6,2600.1,3.6537]
[1750073445606,0.76915,2600.2,2600.1,3.64792177]
[1750073446008,0.76915,2600.2,2600.1,2.6922]
[1750073446512,0.76915,2600.2,2600.1,3.46138]
[1750073446905,0.00577823,2600.4,2600.3,0.76912]
[1750073446906,0.77488823,2600.4,2600.3,0.76912]
[1750073447097,0.77488823,2600.4,2600.3,3.43294204]
[1750073447302,0.77488823,2600.4,2600.3,2.66382204]
[1750073447507,0.77488823,2600.4,2600.3,3.43294204]
[1750073447905,0.00577823,2600.4,2600.3,3.43294204]
[1750073448311,0.77486823,2600.4,2600.3,3.43294204]
[1750073448900,0.77486823,2600.4,2600.3,2.66382204]
[1750073449112,0.77486823,2600.4,2600.2,6.2844]
[1750073449113,0.76912,2600.3,2600.2,6.2844]
[1750073449416,0.76912,2600.3,2600.2,3.0766]
[1750073449606,0.76912,2600.3,2600.2,3.84575]
[1750073449807,0.00577823,2600.4,2600.3,0.76912]
[1750073450008,0.00577823,2600.4,2600.3,3.43294204]
[1750073450203,0.77486823,2600.4,2600.3,0.76912]
[1750073450409,0.00577823,2600.4,2600.2,3.0766]
[1750073450716,0.77486823,2600.4,2600.3,0.76912]
[1750073451516,0.00577823,2600.4,2600.3,0.76912]
[1750073451720,0.00577823,2600.4,2600.3,3.43294204]
[1750073452805,0.00577823,2600.4,2600.3,4.66884204]
[1750073453220,0.30866087,2600.8,2600.7,0.769]
[1750073453417,0.76897,2600.8,2600.7,0.769]
[1750073453814,1.78818754,2600.8,2600.7,0.769]
[1750073454920,0.76897,2600.8,2600.7,0.769]
[1750073455419,1.78820946,2600.8,2600.7,0.769]
[1750073456319,1.78820946,2600.8,2600.6,1.39003]
[1750073456320,0.769,2600.7,2600.6,1.39003]
[1750073456520,3.09563946,2600.7,2600.6,1.39003]
[1750073456914,1.78823946,2600.7,2600.6,1.39003]
[1750073457818,0.76897,2600.8,2600.7,0.769]
[1750073458121,1.78796846,2600.8,2600.7,0.769]
[1750073458523,1.01899846,2600.8,2600.7,0.769]
[1750073459424,1.78796846,2600.8,2600.7,0.769]
[1750073459633,1.01899846,2600.8,2600.7,0.769]
[1750073459921,1.01899846,2600.8,2600.7,1.4494]
[1750073460119,1.78796846,2600.8,2600.7,1.4494]
[1750073460323,1.01899846,2600.8,2600.7,1.4494]
[1750073460526,1.78796846,2600.8,2600.7,1.4494]
[1750073461328,1.01899846,2600.8,2600.7,1.4494]
[1750073462024,0.76891,2601.1,2601.0,0.76888]
[1750073462221,1.78786778,2601.1,2601.0,0.76888]
[1750073462419,1.01898778,2601.1,2601.0,0.76888]
[1750073463226,1.39784,2601.3,2601.2,0.76885]
[1750073463428,1.01899964,2601.3,2601.2,0.76885]
[1750073463631,0.76887,2601.2,2601.1,0.76885]
[1750073464126,0.76877,2601.6,2601.5,0.76876]
[1750073464325,1.78769866,2601.6,2601.5,0.76876]
[1750073465430,1.01892866,2601.6,2601.5,0.76876]
[1750073465631,1.01892866,2601.6,2601.3,0.00576712]
[1750073465632,0.76879,2601.4,2601.3,0.00576712]
[1750073465826,1.78771866,2601.4,2601.3,0.00576712]
[1750073466720,6.35901866,2601.4,2601.3,0.00576712]
[1750073467329,3.15121866,2601.4,2601.3,0.00576712]
[1750073469429,1.78771866,2601.4,2601.3,0.00576712]
[1750073470138,3.13661866,2601.4,2601.3,0.00576712]
[1750073470542,0.76882,2601.3,2601.2,1e-08]
[1750073470841,5.8004707,2601.3,2601.2,1e-08]
[1750073473240,3.13664866,2601.3,2601.2,1e-08]
[1750073473531,1.78774866,2601.3,2601.2,1e-08]
[1750073474925,1.78774866,2601.3,2601.2,0.76885001]
[1750073475325,0.76882,2601.3,2601.2,1e-08]
[1750073476038,1.78730275,2601.3,2601.2,1e-08]
[1750073476738,0.76882,2601.3,2601.2,0.76885001]
[1750073476937,0.0057301,2601.5,2601.4,0.76879]
[1750073477636,0.0057301,2601.5,2601.4,1.40169]
[1750073478146,2.23991282,2602.4,2601.6,1.92184]
[1750073478432,3.2078,2602.1,2601.4,5.0876]
[1750073478636,0.76876,2601.5,2601.4,4.60948]
[1750073479235,0.76876,2601.5,2601.4,3.8407]
[1750073479728,0.641,2601.8,2601.4,3.8407]
[1750073480043,0.76872,2601.7,2601.6,0.76872]
[1750073480239,3.2078,2602.1,2601.5,1.2469]
[1750073480544,0.76866,2601.9,2601.8,0.76867]
[1750073481540,1.92148,2602.1,2601.6,5.53526062]
[1750073481734,1.7872762,2602.0,2601.9,0.76864]
[1750073481934,0.76862,2602.0,2601.9,0.76864]
[1750073482432,0.76857,2602.2,2602.1,0.76857]
[1750073482633,0.76858,2602.1,2602.0,1.40359]
[1750073482844,0.76857,2602.2,2602.1,0.76857]
[1750073483342,0.76855,2602.3,2602.1,0.76857]
[1750073483641,0.76856,2602.2,2602.1,0.76857]
[1750073483828,0.76856,2602.2,2602.1,0.76858]
[1750073484445,0.76858,2602.1,2602.0,2.73899]
[1750073484737,0.76858,2602.1,2602.0,0.635]
[1750073484939,0.76858,2602.1,2601.8,3.2078]
[1750073484940,0.76864,2601.9,2601.8,3.2078]
[1750073485742,0.76864,2602.0,2601.9,0.76863]
[1750073486044,0.76858,2602.2,2602.1,0.76857]
[1750073486430,1.9211,2602.6,2602.1,3.2078]
[1750073486638,0.76858,2602.2,2602.1,0.76857]
[1750073487443,0.76855,2602.3,2602.2,0.76854]
[1750073487837,0.76852,2602.4,2602.3,0.76851]
[1750073488234,0.76849,2602.5,2602.4,0.76847]
[1750073488537,0.76844,2602.6,2602.5,0.76843]
[1750073488739,0.7685,2602.5,2602.4,0.76848]
[1750073489340,0.76846,2602.6,2602.5,0.76844]
[1750073489944,0.76843,2602.7,2602.6,0.76841]
[1750073490139,25.17875,2603.1,2602.5,0.6492]
[1750073490140,0.30528041,2603.1,2602.5,2.6722]
[1750073490446,0.76841,2602.7,2602.6,0.76841]
[1750073490641,0.7684,2602.8,2602.7,0.76841]
[1750073490944,0.76835,2603.0,2602.8,0.76837]
[1750073491136,0.76835,2603.0,2602.9,0.76835]
[1750073491336,12.684,2603.5,2602.8,0.76838]
[1750073491537,0.76824,2603.3,2603.2,0.76824]
[1750073491736,1.92041,2603.6,2602.9,8.74306062]
[1750073491939,0.76826,2603.3,2603.2,0.76826]
[1750073492242,3.2078,2603.5,2603.0,0.6492]
[1750073492544,0.76824,2603.3,2603.2,0.76825]
[1750073492845,0.76825,2603.3,2603.2,0.76825]
[1750073493043,5.1735,2603.5,2603.0,0.6492]
[1750073493538,0.76825,2603.3,2603.2,0.76825]
[1750073493739,5.1735,2603.5,2603.1,5.53526062]
[1750073493933,3.2078,2603.5,2603.1,1.288]
[1750073494237,0.76821,2603.4,2603.3,0.76822]
[1750073494440,0.76822,2603.4,2603.3,0.76822]
[1750073494743,0.76822,2603.4,2603.3,0.76823]
[1750073495247,0.76821,2603.4,2603.3,0.76821]
[1750073495539,0.6774,2603.7,2603.2,10.66369062]
[1750073495746,0.30709921,2604.2,2603.8,1.92017]
[1750073496044,3.2078,2604.3,2604.2,0.76796]
[1750073496248,3.2078,2604.3,2604.1,0.76798]
[1750073496451,3.2078,2604.3,2604.2,0.76796]
[1750073496746,1.3387,2604.6,2604.2,3.2078]
[1750073496953,0.76794,2604.3,2604.2,3.97575]
[1750073497250,0.76793,2604.4,2604.2,3.2078]
[1750073497439,0.76793,2604.4,2604.3,0.76794]
[1750073497634,1.3387,2604.6,2604.3,0.76794]
[1750073497843,0.76789,2604.5,2604.3,0.76794]
[1750073498049,8.76052,2604.8,2604.2,3.2078]